bitfinex/quotes_BTCUSD_20250719
["timestamp","ask_amount","ask_price","bid_price","bid_amount"]
[1752898133948,0.06540919,118390.0,118380.0,0.3410041]
[1752898134159,0.06540919,118390.0,118380.0,0.32410987]
[1752898135321,0.06540919,118390.0,118380.0,0.33255702]
[1752898136109,0.06540919,118390.0,118380.0,0.3410041]
[1752898136324,0.06540919,118390.0,118380.0,0.33255702]
[1752898136505,0.23434237,118390.0,118380.0,0.32410987]
[1752898136855,0.23434237,118390.0,118380.0,0.33255702]
[1752898137059,0.23434237,118390.0,118380.0,0.62603031]
[1752898137334,0.23434237,118390.0,118380.0,0.61758316]
[1752898137542,0.23434237,118390.0,118380.0,0.17739468]
[1752898137750,0.21744956,118390.0,118380.0,0.17739482]
[1752898137976,0.21744956,118390.0,118380.0,0.6175833]
[1752898138196,0.21744956,118390.0,118380.0,0.63447783]
[1752898138429,0.21744956,118390.0,118380.0,0.6260306]
[1752898138652,0.21744956,118390.0,118380.0,0.63447783]
[1752898139105,0.21744956,118390.0,118380.0,0.6260306]
[1752898139296,0.21744956,118390.0,118380.0,0.18584212]
[1752898139506,0.21744956,118390.0,118380.0,0.6260306]
[1752898140288,0.21744956,118390.0,118380.0,0.63447783]
[1752898141064,0.21744956,118390.0,118380.0,0.6260306]
[1752898141583,0.21744956,118390.0,118380.0,0.17739482]
[1752898141843,0.21744956,118390.0,118380.0,0.6175833]
[1752898142069,0.21744956,118390.0,118380.0,0.63447783]
[1752898142590,0.21744956,118390.0,118380.0,0.6175833]
[1752898143112,0.21744956,118390.0,118380.0,0.16894745]
[1752898143326,0.21744956,118390.0,118380.0,0.60913593]
[1752898143927,0.21744956,118390.0,118380.0,0.44018848]
[1752898144071,0.20900291,118390.0,118380.0,0.44018848]
[1752898144693,0.20900291,118390.0,118370.0,0.41369532]
[1752898144694,0.01689445,118380.0,118370.0,0.40524676]
[1752898144939,0.21465898,118380.0,118370.0,0.08551028]
[1752898145162,0.2223119,118380.0,118370.0,0.43932452]
[1752898146926,0.2223119,118380.0,118370.0,0.36599323]
[1752898148361,0.2223119,118380.0,118370.0,0.21923028]
[1752898148574,0.2223119,118380.0,118370.0,0.36599323]
[1752898153886,0.2223119,118380.0,118370.0,0.21923028]
[1752898154090,0.2223119,118380.0,118370.0,0.37444124]
[1752898154299,0.03726445,118380.0,118370.0,0.39133705]
[1752898154514,0.03041182,118380.0,118370.0,0.56239878]
[1752898154780,0.18408291,118390.0,118370.0,0.74301044]
[1752898154781,4.973e-05,118390.0,118370.0,0.74301044]
[1752898155025,0.01694225,118390.0,118380.0,0.60532474]
[1752898155239,0.01694218,118390.0,118380.0,0.30545197]
[1752898155444,0.03383527,118390.0,118380.0,0.56697787]
[1752898155647,0.02538862,118390.0,118380.0,0.56697787]
[1752898155855,0.03383513,118390.0,118380.0,0.57542474]
[1752898156476,0.02738862,118390.0,118380.0,0.57542474]
[1752898156878,0.02738862,118390.0,118380.0,0.57542481]
[1752898157083,0.0358352,118390.0,118380.0,0.28189891]
[1752898157552,0.0358352,118390.0,118380.0,0.57542481]
[1752898157754,0.0368352,118390.0,118380.0,0.56697787]
[1752898158208,0.0368352,118390.0,118380.0,0.57542481]
[1752898158440,0.02838862,118390.0,118380.0,0.58387168]
[1752898158682,0.00304973,118390.0,118380.0,0.69723911]
[1752898159132,0.01149581,118390.0,118380.0,0.69538911]
[1752898159344,0.01994204,118390.0,118380.0,0.40186321]
[1752898159816,0.01149581,118390.0,118380.0,0.69538911]
[1752898159989,0.03683463,118390.0,118380.0,0.69538911]
[1752898160192,0.01149581,118390.0,118380.0,0.69538911]
[1752898160830,0.00304973,118390.0,118380.0,0.69538911]
[1752898161043,0.00304973,118390.0,118380.0,1.03723911]
[1752898162424,0.00104973,118390.0,118380.0,1.03723911]
[1752898162642,0.00949574,118390.0,118380.0,1.03723911]
[1752898162850,0.00849574,118390.0,118380.0,1.03723911]
[1752898163068,0.00849574,118390.0,118380.0,0.74371321]
[1752898163270,0.00849574,118390.0,118380.0,1.03723911]
[1752898163492,4.973e-05,118390.0,118380.0,1.03723911]
[1752898164275,4.973e-05,118390.0,118380.0,1.17051911]
[1752898167098,4.973e-05,118390.0,118380.0,1.31728206]
[1752898167301,4.973e-05,118390.0,118380.0,1.81566306]
[1752898167896,4.973e-05,118390.0,118380.0,1.81666306]
[1752898169009,4.973e-05,118390.0,118380.0,1.81766306]
[1752898170010,4.973e-05,118390.0,118380.0,3.19732406]
[1752898170227,4.973e-05,118390.0,118380.0,3.24732406]
[1752898170640,4.973e-05,118390.0,118380.0,3.18949606]
[1752898170858,4.973e-05,118390.0,118380.0,2.73301321]
[1752898171062,4.973e-05,118390.0,118380.0,2.44945906]
[1752898171063,0.00849574,118390.0,118380.0,2.44945906]
[1752898171486,0.00849574,118390.0,118380.0,2.30269611]
[1752898172082,0.00849574,118390.0,118380.0,2.28072611]
[1752898172505,4.973e-05,118390.0,118380.0,2.28072611]
[1752898173946,4.973e-05,118390.0,118380.0,2.42748906]
[1752898177527,4.973e-05,118390.0,118380.0,3.91809106]
[1752898177793,4.973e-05,118390.0,118380.0,3.55286206]
[1752898178004,4.973e-05,118390.0,118380.0,3.26759106]
[1752898178206,4.973e-05,118390.0,118380.0,3.21266306]
[1752898178412,4.973e-05,118390.0,118380.0,3.20442606]
[1752898178620,4.973e-05,118390.0,118380.0,3.16267306]
[1752898179262,4.973e-05,118390.0,118380.0,3.02078606]
[1752898179470,4.973e-05,118390.0,118380.0,3.22786506]
[1752898180559,4.973e-05,118390.0,118380.0,3.60447506]
[1752898180755,4.973e-05,118390.0,118380.0,3.56847906]
[1752898181164,4.973e-05,118390.0,118380.0,3.10751621]
[1752898181369,4.973e-05,118390.0,118380.0,3.11254706]
[1752898181618,4.973e-05,118390.0,118380.0,3.12234706]
[1752898181832,4.973e-05,118390.0,118380.0,2.68205821]
[1752898182035,4.973e-05,118390.0,118380.0,3.10960306]
[1752898182459,4.973e-05,118390.0,118380.0,3.05735806]
[1752898182856,4.973e-05,118390.0,118380.0,2.61706921]
[1752898183076,4.973e-05,118390.0,118380.0,3.00872806]
[1752898183737,4.973e-05,118390.0,118380.0,3.11256806]
[1752898183950,4.973e-05,118390.0,118380.0,3.06395206]
[1752898184546,4.973e-05,118390.0,118380.0,1.31928206]
[1752898184847,4.973e-05,118390.0,118380.0,3.54842406]
[1752898185448,4.973e-05,118390.0,118380.0,3.75110406]
[1752898185623,4.973e-05,118390.0,118380.0,3.68808106]
[1752898185827,4.973e-05,118390.0,118380.0,3.68807806]
[1752898186030,4.973e-05,118390.0,118380.0,3.88619306]
[1752898186238,4.973e-05,118390.0,118380.0,3.88619206]
[1752898186663,4.973e-05,118390.0,118380.0,3.64619106]
[1752898187147,4.973e-05,118390.0,118380.0,1.52196206]
[1752898187359,4.973e-05,118390.0,118380.0,3.68808106]
[1752898187513,4.973e-05,118390.0,118380.0,3.64619106]
[1752898187927,4.973e-05,118390.0,118380.0,1.52196206]
[1752898188125,4.973e-05,118390.0,118380.0,3.72610006]
[1752898188960,4.973e-05,118390.0,118380.0,3.59744059]
[1752898189166,4.973e-05,118390.0,118380.0,3.59743759]
[1752898189989,4.973e-05,118390.0,118380.0,3.29511959]
[1752898190197,4.973e-05,118390.0,118380.0,3.15221959]
[1752898190696,4.973e-05,118390.0,118380.0,3.02204859]
[1752898191177,4.973e-05,118390.0,118380.0,2.99105759]
[1752898191380,4.973e-05,118390.0,118380.0,3.19627059]
[1752898191589,4.973e-05,118390.0,118380.0,2.90100759]
[1752898192428,4.973e-05,118390.0,118380.0,3.30965759]
[1752898192847,4.973e-05,118390.0,118380.0,3.17099459]
[1752898193525,4.973e-05,118390.0,118380.0,3.42695059]
[1752898194367,4.973e-05,118390.0,118380.0,3.55495759]
[1752898194576,4.973e-05,118390.0,118380.0,3.21131759]
[1752898194921,4.973e-05,118390.0,118380.0,3.03759859]
[1752898195358,4.973e-05,118390.0,118380.0,1.74161159]
[1752898195581,4.973e-05,118390.0,118380.0,3.08621159]
[1752898196488,4.973e-05,118390.0,118380.0,3.89853359]
[1752898196730,0.0168644,118400.0,118390.0,0.9742312]
[1752898196966,0.0168644,118400.0,118390.0,2.3542801]
[1752898197254,0.00841903,118400.0,118390.0,2.3542801]
[1752898198899,0.04493497,118410.0,118400.0,0.19425588]
[1752898199088,0.04493497,118410.0,118400.0,0.85264508]
[1752898199089,0.06342497,118410.0,118400.0,0.85264508]
[1752898200114,0.06442497,118410.0,118400.0,0.85264508]
[1752898200319,0.06642497,118410.0,118400.0,0.9384047]
[1752898201138,0.05797988,118410.0,118400.0,0.9384047]
[1752898201372,0.05797953,118410.0,118400.0,0.9384047]
[1752898202019,0.06642462,118410.0,118400.0,0.9384047]
[1752898204335,0.07486985,118410.0,118400.0,0.9384047]
[1752898204541,0.07486978,118410.0,118400.0,0.9384047]
[1752898205202,0.08331501,118410.0,118400.0,0.9384047]
[1752898205620,0.243775,118410.0,118400.0,0.49000034]
[1752898205737,0.23533013,118410.0,118400.0,0.49000034]
[1752898205949,0.21843988,118410.0,118400.0,0.9215136]
[1752898206160,0.21843988,118410.0,118400.0,0.9299594]
[1752898206374,0.21843988,118410.0,118400.0,0.94685064]
[1752898207089,0.04953501,118410.0,118400.0,2.61699708]
[1752898207309,0.0664249,118410.0,118400.0,2.61699708]
[1752898207727,0.07487006,118410.0,118400.0,2.61699708]
[1752898207937,0.07487006,118410.0,118400.0,2.44265864]
[1752898208195,0.07487006,118410.0,118400.0,1.99021864]
[1752898208423,0.06642433,118410.0,118400.0,1.91221708]
[1752898208837,0.06642433,118410.0,118400.0,1.88748264]
[1752898209044,0.07486942,118410.0,118400.0,1.87082964]
[1752898209259,0.06642433,118410.0,118400.0,1.87927508]
[1752898209675,0.07486942,118410.0,118400.0,1.86365808]
[1752898209887,0.08331465,118410.0,118400.0,1.38150871]
[1752898210101,0.07486942,118410.0,118400.0,0.95529622]
[1752898210321,0.24377407,118410.0,118400.0,0.9299594]
[1752898210542,0.08331465,118410.0,118400.0,0.93840506]
[1752898210799,0.04953459,118410.0,118400.0,0.9464505]
[1752898211012,0.05797939,118410.0,118400.0,0.9464505]
[1752898211224,0.05797932,118410.0,118400.0,0.9464505]
[1752898212092,0.06642412,118410.0,118400.0,0.9464505]
[1752898212865,0.07486906,118410.0,118400.0,0.9464505]
[1752898213833,0.05797932,118410.0,118400.0,4.6887175]
[1752898214044,0.04953459,118410.0,118400.0,4.3691705]
[1752898214471,0.04953459,118410.0,118400.0,4.3304225]
[1752898215373,0.04109,118410.0,118400.0,4.3304225]
[1752898216146,0.03708981,118410.0,118400.0,4.3304225]
[1752898216376,0.04553447,118410.0,118400.0,4.2958295]
[1752898216602,0.03708981,118410.0,118400.0,4.2958295]
[1752898216830,0.03708981,118410.0,118400.0,1.16642996]
[1752898217051,0.00819,118410.0,118400.0,4.7033175]
[1752898217264,0.00819,118410.0,118400.0,4.92329696]
[1752898218112,0.0062,118410.0,118400.0,5.32362396]
[1752898218320,0.0062,118410.0,118400.0,5.23878196]
[1752898218499,0.0062,118410.0,118400.0,4.97840496]
[1752898218932,0.0062,118410.0,118400.0,4.7461495]
[1752898219143,0.0062,118410.0,118400.0,4.22003958]
[1752898219347,0.003,118410.0,118400.0,5.21997796]
[1752898219557,0.003,118410.0,118400.0,5.25282796]
[1752898220014,0.003,118410.0,118400.0,6.54128996]
[1752898220244,0.0002,118420.0,118410.0,0.19423948]
[1752898220547,0.00069748,118420.0,118410.0,5.9398383]
[1752898220685,0.00373748,118420.0,118410.0,5.9398383]
[1752898221714,0.00573748,118420.0,118410.0,5.9398383]
[1752898222392,0.00369748,118420.0,118410.0,5.9398383]
[1752898223133,0.00269748,118420.0,118410.0,5.9398383]
[1752898224971,0.00069748,118420.0,118410.0,5.9398383]
[1752898226363,0.00380748,118420.0,118410.0,5.9398383]
[1752898226977,0.00592748,118420.0,118410.0,5.9398383]
[1752898227213,0.00592748,118420.0,118410.0,5.3427533]
[1752898227435,0.03692748,118420.0,118410.0,5.3427533]
[1752898227701,0.06225974,118420.0,118410.0,0.25441493]
[1752898227913,0.24569162,118420.0,118410.0,0.13208]
[1752898228124,0.0563344,118410.0,118400.0,0.39734417]
[1752898228337,0.22735948,118410.0,118400.0,0.83503398]
[1752898228543,0.23046948,118410.0,118400.0,0.9207936]
[1752898228750,0.21357974,118410.0,118400.0,0.9207936]
[1752898229407,0.21357974,118410.0,118400.0,0.9292394]
[1752898230058,0.21357974,118410.0,118400.0,0.9217936]
[1752898230459,0.21357974,118410.0,118400.0,0.9227936]
[1752898231125,0.04467509,118410.0,118400.0,0.93968506]
[1752898231380,0.23046977,118410.0,118400.0,0.48283468]
[1752898231637,0.2220249,118410.0,118400.0,0.83703398]
[1752898231865,0.2220249,118410.0,118400.0,0.6596692]
[1752898232102,0.2220249,118410.0,118400.0,0.35417946]
[1752898232745,0.2220249,118410.0,118400.0,0.52309837]
[1752898232970,0.2220249,118410.0,118400.0,0.53999018]
[1752898233183,0.2220249,118410.0,118400.0,0.52309837]
[1752898233369,0.2220249,118410.0,118400.0,0.53154431]
[1752898233692,0.21357981,118410.0,118400.0,0.35417946]
[1752898233914,0.21357981,118410.0,118400.0,0.52309837]
[1752898234152,0.21357981,118410.0,118400.0,0.35417946]
[1752898235203,0.21357981,118410.0,118400.0,0.30311891]
[1752898235419,0.21357981,118410.0,118400.0,0.52309837]
[1752898236131,0.21357981,118410.0,118400.0,0.1342]
[1752898236326,0.21357981,118410.0,118400.0,0.35417946]
[1752898238671,0.21357981,118410.0,118400.0,0.1342]
[1752898238877,0.21357981,118410.0,118400.0,0.35417946]
[1752898239921,0.21357981,118410.0,118400.0,0.1342]
[1752898240282,0.21357981,118410.0,118400.0,0.35417946]
[1752898243225,0.45305804,118410.0,118400.0,0.002]
[1752898243402,0.44810012,118410.0,118400.0,0.13404]
[1752898244021,0.44810012,118410.0,118400.0,0.13304]
[1752898244232,0.44810012,118410.0,118400.0,0.13204]
[1752898244423,0.22812066,118410.0,118400.0,0.13204]
[1752898244600,0.45010012,118410.0,118400.0,0.13204]
[1752898244810,0.45110012,118410.0,118400.0,0.13204]
[1752898245010,0.23112066,118410.0,118400.0,0.13204]
[1752898245810,0.45110012,118410.0,118400.0,0.13204]
[1752898247595,0.23112066,118410.0,118400.0,0.13204]
[1752898247803,0.45110012,118410.0,118400.0,0.13204]
[1752898250235,0.23112066,118410.0,118400.0,0.13204]
[1752898250447,0.45110012,118410.0,118400.0,0.13204]
[1752898250874,0.17736471,118400.0,118390.0,0.21997946]
[1752898251087,0.01689424,118380.0,118370.0,0.76273302]
[1752898251304,0.02746111,118380.0,118370.0,0.98873088]
[1752898251538,0.02212388,118380.0,118370.0,0.98873088]
[1752898251792,0.03901826,118380.0,118370.0,0.99074088]
[1752898252043,0.03901826,118380.0,118370.0,1.0765005]
[1752898252276,0.03057103,118380.0,118370.0,1.0765005]
[1752898252511,0.03901826,118380.0,118370.0,1.07655023]
[1752898252756,0.03057103,118380.0,118370.0,1.07855023]
[1752898253309,0.03901826,118380.0,118370.0,1.07855023]
[1752898254229,0.05743882,118380.0,118370.0,1.07855023]
[1752898254433,0.05743932,118380.0,118370.0,1.08055023]
[1752898254891,0.04746606,118380.0,118370.0,1.08055023]
[1752898255730,0.2079665,118380.0,118370.0,1.07210265]
[1752898255969,0.2079665,118380.0,118370.0,1.08055037]
[1752898256955,0.2079665,118380.0,118370.0,0.86057091]
[1752898257167,0.19951935,118380.0,118370.0,1.06365485]
[1752898258111,0.19107212,118380.0,118370.0,1.06365485]
[1752898258346,0.20102467,118380.0,118370.0,1.06365485]
[1752898259267,0.20102467,118380.0,118370.0,1.07210272]
[1752898259573,0.19107212,118380.0,118370.0,1.08055052]
[1752898259768,0.19107212,118380.0,118370.0,0.9947909]
[1752898259916,0.19107212,118380.0,118370.0,0.9927909]
[1752898260491,0.19107212,118380.0,118370.0,0.99179054]
[1752898260687,0.19107212,118380.0,118370.0,0.99279054]
[1752898260920,0.19107212,118380.0,118370.0,0.99279018]
[1752898261701,0.19107212,118380.0,118370.0,1.0785498]
[1752898261904,0.19107212,118380.0,118370.0,1.07010215]
[1752898263370,0.22137212,118380.0,118370.0,0.73530909]
[1752898263561,0.21292482,118380.0,118370.0,0.78802755]
[1752898264201,0.21292482,118380.0,118370.0,0.79647556]
[1752898264414,0.21292482,118380.0,118370.0,0.96543729]
[1752898264770,0.20447745,118380.0,118370.0,0.74545783]
[1752898264971,0.20447745,118380.0,118370.0,0.96543729]
[1752898266234,0.20447745,118380.0,118370.0,1.05119691]
[1752898266659,0.20447745,118380.0,118370.0,1.05964471]
[1752898266892,0.21292475,118380.0,118370.0,1.06809243]
[1752898267109,0.02212438,118380.0,118370.0,1.07855001]
[1752898267757,0.02212438,118380.0,118370.0,0.85857055]
[1752898267984,0.03057175,118380.0,118370.0,1.07855001]
[1752898269098,0.02212395,118380.0,118370.0,1.07855001]
[1752898269324,0.03057118,118380.0,118370.0,1.07855001]
[1752898269548,0.02000395,118380.0,118370.0,1.07855001]
[1752898269788,0.01689395,118380.0,118370.0,1.07855001]
[1752898270015,0.02838118,118380.0,118370.0,1.07855001]
[1752898270465,0.0283811,118380.0,118370.0,1.07855001]
[1752898272545,0.03682833,118380.0,118370.0,1.07855001]
[1752898272730,0.03887833,118380.0,118370.0,1.07855001]
[1752898273510,0.03682833,118380.0,118370.0,1.07855001]
[1752898273781,0.0283811,118380.0,118370.0,1.07855001]
[1752898274007,0.03887833,118380.0,118370.0,1.07855001]
[1752898274208,0.03887833,118380.0,118370.0,0.99279039]
[1752898275956,0.04732563,118380.0,118370.0,0.99279039]
[1752898276887,0.2078265,118380.0,118370.0,0.97589509]
[1752898277045,0.2078265,118380.0,118370.0,0.30753947]
[1752898277046,0.22243212,118380.0,118370.0,0.30753947]
[1752898277403,0.22243212,118380.0,118370.0,0.61698928]
[1752898277730,0.21398482,118380.0,118370.0,0.09600809]
[1752898277863,0.21398482,118380.0,118370.0,0.43957947]
[1752898278441,0.21398482,118380.0,118370.0,0.61698914]
[1752898279783,0.21398482,118380.0,118370.0,0.48494914]
[1752898279981,0.21398482,118380.0,118370.0,0.61698914]
[1752898280509,0.21398482,118380.0,118370.0,0.25652174]
[1752898280694,0.21398482,118380.0,118370.0,0.61694928]
[1752898281116,0.21398482,118380.0,118370.0,0.49339722]
[1752898281285,0.21398482,118380.0,118370.0,0.62539722]
[1752898282122,0.21398482,118380.0,118370.0,0.61694928]
[1752898282343,0.21398482,118380.0,118370.0,0.44798755]
[1752898283797,0.21398482,118380.0,118370.0,0.45643556]
[1752898285160,0.21398482,118380.0,118370.0,0.2364561]
[1752898285331,0.21398482,118380.0,118370.0,0.31598755]
[1752898285532,0.20553745,118380.0,118370.0,0.30753947]
[1752898285682,0.20553745,118380.0,118370.0,0.43953947]
[1752898286133,0.20553745,118380.0,118370.0,0.35402919]
[1752898287395,0.20553745,118380.0,118370.0,0.00204973]
[1752898287572,0.20553745,118380.0,118370.0,0.35402919]
[1752898292591,0.20553745,118380.0,118370.0,0.13404973]
[1752898292808,0.20553745,118380.0,118370.0,0.35402919]
[1752898293587,0.20553745,118380.0,118370.0,0.36247727]
[1752898295565,0.20553745,118380.0,118370.0,0.35402919]
[1752898295769,0.20553745,118380.0,118370.0,0.22202919]
[1752898295932,0.20553745,118380.0,118370.0,0.35402919]
[1752898299091,0.20553745,118380.0,118370.0,0.13404973]
[1752898299197,0.20553745,118380.0,118370.0,0.35402919]
[1752898299683,0.20553745,118380.0,118370.0,0.36247727]
[1752898299892,0.20553745,118380.0,118370.0,0.38822192]
[1752898300318,0.20553745,118380.0,118370.0,0.37977391]
[1752898300526,0.20553745,118380.0,118370.0,0.36247727]
[1752898301023,0.18943745,118380.0,118370.0,0.37092528]
[1752898302242,0.18943745,118380.0,118370.0,0.53988701]
[1752898302386,0.18248482,118380.0,118370.0,0.55044488]
[1752898302598,0.18248482,118380.0,118370.0,0.54199701]
[1752898302796,0.18248482,118380.0,118370.0,0.55044495]
[1752898302996,0.18248482,118380.0,118370.0,0.41622511]
[1752898303276,0.18248482,118380.0,118370.0,0.64465244]
[1752898303496,0.18248482,118380.0,118370.0,0.55889282]
[1752898303925,0.18248482,118380.0,118370.0,0.77887228]
[1752898304793,0.21388482,118380.0,118370.0,0.31990755]
[1752898305033,0.21388482,118380.0,118370.0,0.53988701]
[1752898305543,0.21388482,118380.0,118370.0,0.36247727]
[1752898305738,0.21388482,118380.0,118370.0,0.14249781]
[1752898305983,0.21388482,118380.0,118370.0,0.36247727]
[1752898306201,0.21388482,118380.0,118370.0,0.37092528]
[1752898307292,0.21388482,118380.0,118370.0,0.36247727]
[1752898308430,0.21388482,118380.0,118370.0,0.14249781]
[1752898308667,0.21388482,118380.0,118370.0,0.36247727]
[1752898309059,0.21388482,118380.0,118370.0,0.35402919]
[1752898310362,0.21388482,118380.0,118370.0,0.36247727]
[1752898311359,0.19878482,118380.0,118370.0,0.36247727]
[1752898313613,0.18248482,118380.0,118370.0,0.36247727]
[1752898314970,0.18248482,118380.0,118370.0,0.53988694]
[1752898315654,0.18248482,118380.0,118370.0,0.531439]
[1752898315862,0.18248482,118380.0,118370.0,0.31145954]
[1752898315985,0.18248482,118380.0,118370.0,0.531439]
[1752898319111,0.18248482,118380.0,118370.0,0.53988701]
[1752898319902,0.18248482,118380.0,118370.0,0.54833495]
[1752898320171,0.18248482,118380.0,118370.0,0.55678282]
[1752898320608,0.18248482,118380.0,118370.0,0.54833495]
[1752898320821,0.19778482,118380.0,118370.0,0.31990755]
[1752898321028,0.21418482,118380.0,118370.0,0.31990755]
[1752898321232,0.21418482,118380.0,118370.0,0.53988701]
[1752898322114,0.21418482,118380.0,118370.0,0.54833495]
[1752898322594,0.21418482,118380.0,118370.0,0.53988701]
[1752898323041,0.21418482,118380.0,118370.0,0.531439]
[1752898323867,0.21418482,118380.0,118370.0,0.36247727]
[1752898324083,0.20573745,118380.0,118370.0,0.36247727]
[1752898327803,0.20573745,118380.0,118370.0,0.14249781]
[1752898327995,0.20573745,118380.0,118370.0,0.36247727]
[1752898328203,0.20573745,118380.0,118370.0,0.37092528]
[1752898330679,0.20573745,118380.0,118370.0,0.13404973]
[1752898331082,0.20573745,118380.0,118370.0,0.35402919]
[1752898332006,0.20573745,118380.0,118370.0,0.36247727]
[1752898333856,0.20573745,118380.0,118370.0,0.13404973]
[1752898334071,0.20573745,118380.0,118370.0,0.35402919]
[1752898335527,0.20573745,118380.0,118370.0,0.36247727]
[1752898335728,0.17403745,118380.0,118370.0,0.37092528]
[1752898335925,0.17403745,118380.0,118370.0,0.53988701]
[1752898339083,0.17403745,118380.0,118370.0,0.54833495]
[1752898340013,0.17403745,118380.0,118370.0,0.53988701]
[1752898340634,0.17403745,118380.0,118370.0,0.531439]
[1752898340958,0.17403745,118380.0,118370.0,0.36247727]
[1752898342619,0.17403745,118380.0,118370.0,0.14249781]
[1752898342832,0.17403745,118380.0,118370.0,0.36247727]
[1752898343285,0.17403745,118380.0,118370.0,0.14249781]
[1752898343484,0.17403745,118380.0,118370.0,0.36247727]
[1752898343687,0.17403745,118380.0,118370.0,0.13404973]
[1752898343924,0.17403745,118380.0,118370.0,0.35402919]
[1752898344835,0.20573745,118380.0,118370.0,0.35402919]
[1752898345403,0.21069537,118380.0,118370.0,0.35402919]
[1752898345583,0.20573745,118380.0,118370.0,0.35402919]
[1752898346683,0.17403745,118380.0,118370.0,0.13404973]
[1752898346898,0.20573745,118380.0,118370.0,0.13388973]
[1752898347650,0.20573745,118380.0,118370.0,0.35386919]
[1752898347858,0.20573745,118380.0,118370.0,0.13288973]
[1752898348048,0.20573745,118380.0,118370.0,0.35286919]
[1752898348263,0.20573745,118380.0,118370.0,0.13288973]
[1752898348465,0.20573745,118380.0,118370.0,0.35286919]
[1752898348813,0.20573745,118380.0,118370.0,0.13288973]
[1752898349015,0.20573745,118380.0,118370.0,0.35286919]
[1752898349711,0.20573745,118380.0,118370.0,0.13288973]
[1752898349918,0.21069537,118380.0,118370.0,0.13188973]
[1752898350122,0.20573745,118380.0,118370.0,0.35186919]
[1752898351490,0.20573745,118380.0,118370.0,0.13188973]
[1752898351703,0.20573745,118380.0,118370.0,0.35186919]
[1752898352471,0.20573745,118380.0,118370.0,0.13188973]
[1752898352897,0.20573745,118380.0,118370.0,0.35186919]
[1752898356883,0.20573745,118380.0,118370.0,0.13188973]
[1752898357076,0.20573745,118380.0,118370.0,0.35186919]
[1752898358241,0.17403745,118380.0,118370.0,0.35399919]
[1752898358375,0.17403745,118380.0,118370.0,0.36741865]
[1752898358595,0.16894745,118380.0,118370.0,0.38469919]
[1752898358994,0.16894745,118380.0,118370.0,0.36919919]
[1752898359236,0.16894745,118380.0,118370.0,0.35399919]
[1752898362661,0.17219745,118380.0,118370.0,0.35399919]
[1752898363105,0.17430745,118380.0,118370.0,0.35399919]
[1752898363737,0.17219745,118380.0,118370.0,0.35399919]
[1752898364355,0.17219745,118380.0,118370.0,0.13401973]
[1752898364992,0.17430745,118380.0,118370.0,0.35399919]
[1752898365196,0.17430745,118380.0,118370.0,0.13401973]
[1752898365417,0.17430745,118380.0,118370.0,0.35399919]
[1752898367697,0.17430745,118380.0,118370.0,0.35186919]
[1752898369887,0.17430745,118380.0,118370.0,0.35399919]
[1752898370094,0.17430745,118380.0,118370.0,0.13401973]
[1752898370296,0.17430745,118380.0,118370.0,0.35399919]
[1752898370825,0.20580745,118380.0,118370.0,0.13184973]
[1752898371042,0.20580745,118380.0,118370.0,0.35182919]
[1752898376490,0.20580745,118380.0,118370.0,0.13184973]
[1752898376697,0.20580745,118380.0,118370.0,0.35182919]
[1752898379061,0.20580745,118380.0,118370.0,0.13184973]
[1752898379305,0.20580745,118380.0,118370.0,0.35182919]
[1752898379539,0.42578691,118380.0,118370.0,4.973e-05]
[1752898379761,0.42578691,118380.0,118370.0,0.13180973]
[1752898380616,0.42578691,118380.0,118370.0,0.35178919]
[1752898380826,0.42578691,118380.0,118370.0,0.13180973]
[1752898382101,0.20580745,118380.0,118370.0,0.13180973]
[1752898382308,0.42578691,118380.0,118370.0,0.13180973]
[1752898382515,0.20580745,118380.0,118370.0,0.13180973]
[1752898383568,0.42578691,118380.0,118370.0,0.13180973]
[1752898383787,0.66030722,118380.0,118370.0,0.13180973]
[1752898384981,0.66130722,118380.0,118370.0,0.13180973]
[1752898385799,0.2213483,118380.0,118370.0,0.13180973]
[1752898386011,0.66130722,118380.0,118370.0,0.13180973]
[1752898386425,0.44132776,118380.0,118370.0,0.13180973]
[1752898386841,0.2213483,118380.0,118370.0,0.13180973]
[1752898387091,0.44132776,118380.0,118370.0,0.13180973]
[1752898387284,0.2213483,118380.0,118370.0,0.13180973]
[1752898387502,0.44132776,118380.0,118370.0,0.13180973]
[1752898388125,0.2213483,118380.0,118370.0,0.35178919]
[1752898388369,0.2213483,118380.0,118370.0,0.13180973]
[1752898389153,0.44432776,118380.0,118370.0,0.13180973]
[1752898392295,0.44928568,118380.0,118370.0,0.13180973]
[1752898392501,0.44432776,118380.0,118370.0,0.13180973]
[1752898393552,0.2243483,118380.0,118370.0,0.13180973]
[1752898393730,0.44432776,118380.0,118370.0,0.13180973]
[1752898394139,0.2243483,118380.0,118370.0,0.13180973]
[1752898394348,0.44432776,118380.0,118370.0,0.13180973]
[1752898395467,0.2243483,118380.0,118370.0,0.13180973]
[1752898395660,0.44432776,118380.0,118370.0,0.13180973]
[1752898396484,0.66430722,118380.0,118370.0,0.13180973]
[1752898396800,0.2243483,118380.0,118370.0,0.13180973]
[1752898397053,0.66430722,118380.0,118370.0,0.13180973]
[1752898401349,0.66401155,118380.0,118370.0,0.13180973]
[1752898401569,0.66021007,118380.0,118370.0,0.13180973]
[1752898402745,0.1721003,118380.0,118370.0,0.35375919]
[1752898402979,0.004,118380.0,118370.0,0.88630405]
[1752898403201,0.004,118380.0,118370.0,1.30319219]
[1752898403418,0.004,118380.0,118370.0,1.37984018]
[1752898404150,0.003,118380.0,118370.0,1.37984018]
[1752898404791,0.003,118380.0,118370.0,1.31206367]
[1752898405048,0.03378269,118400.0,118390.0,0.2251725]
[1752898405260,0.03378269,118400.0,118390.0,0.58905821]
[1752898405479,0.03378269,118400.0,118390.0,0.59101821]
[1752898405689,0.04222863,118400.0,118390.0,0.59286821]
[1752898406278,0.04522863,118400.0,118390.0,0.59286821]
[1752898406464,0.21414754,118400.0,118390.0,0.59286821]
[1752898407267,0.21414754,118400.0,118390.0,0.58442198]
[1752898407470,0.2057021,118400.0,118390.0,0.59286835]
[1752898407926,0.2057021,118400.0,118390.0,0.60131465]
[1752898408526,0.2057021,118400.0,118390.0,0.60976088]
[1752898409094,0.2057021,118400.0,118390.0,0.58442198]
[1752898409305,0.19725652,118400.0,118390.0,0.58442198]
[1752898409514,0.01989138,118400.0,118390.0,0.6013145]
[1752898409722,0.19725623,118400.0,118390.0,0.44617292]
[1752898409904,0.19725623,118400.0,118390.0,0.58442198]
[1752898410340,0.19725623,118400.0,118390.0,0.43772655]
[1752898410540,0.19725623,118400.0,118390.0,0.58442198]
[1752898410743,0.19725623,118400.0,118390.0,0.58257198]
[1752898410963,0.18881065,118400.0,118390.0,0.57412554]
[1752898411226,0.18881065,118400.0,118390.0,0.58257212]
[1752898411454,0.18881065,118400.0,118390.0,0.59101863]
[1752898411926,0.18036485,118400.0,118390.0,0.39674571]
[1752898412394,0.18036485,118400.0,118390.0,0.40519236]
[1752898412957,0.18036485,118400.0,118390.0,0.41363894]
[1752898413188,0.18036485,118400.0,118390.0,0.58257212]
[1752898418806,0.18036485,118400.0,118390.0,0.43587669]
[1752898419007,0.18036485,118400.0,118390.0,0.58257212]
[1752898419332,0.18036485,118400.0,118390.0,0.59101849]
[1752898421334,0.18881058,118400.0,118390.0,0.59101849]
[1752898422712,0.18881058,118400.0,118390.0,0.59946479]